bitfinex/quotes_SOLUSD_20251031
["timestamp","ask_amount","ask_price","bid_price","bid_amount"]
[1761895519851,7.14235056,186.29,186.28,15.15684613]
[1761895521183,4.02554401,186.29,186.28,15.15684613]
[1761895523670,4.02554401,186.29,186.28,15.84684613]
[1761895524279,4.02554401,186.29,186.28,77.54684613]
[1761895528397,13.22040134,186.29,186.24,61.7]
[1761895528559,3.11680655,186.3,186.24,71.48882769]
[1761895528560,3.11680655,186.25,186.24,71.48882769]
[1761895528760,4.02668959,186.25,186.24,71.48882769]
[1761895529377,4.02668959,186.25,186.24,76.8581129]
[1761895531274,3.80680655,186.27,186.24,76.8581129]
[1761895531585,4.02231117,186.26,186.24,76.8581129]
[1761895531779,3.11680655,186.27,186.24,76.8581129]
[1761895531979,4.02225528,186.26,186.24,77.5581129]
[1761895532163,3.11680655,186.27,186.24,77.5581129]
[1761895532359,4.02132757,186.26,186.24,77.5581129]
[1761895532568,3.11680655,186.27,186.24,77.5581129]
[1761895532768,4.02124202,186.26,186.24,77.5581129]
[1761895532968,3.11680655,186.27,186.24,77.5581129]
[1761895533182,4.0212416,186.26,186.24,77.5581129]
[1761895533386,3.11680655,186.27,186.24,77.5581129]
[1761895533583,3.11680655,186.27,186.19,9.78882769]
[1761895533584,3.11680655,186.25,186.19,9.78882769]
[1761895533765,4.02044518,186.24,186.19,9.78882769]
[1761895533965,3.11680655,186.2,186.16,0.7]
[1761895534187,3.11680655,186.19,186.15,18.80204135]
[1761895534374,0.69,186.22,186.16,10.48882769]
[1761895534573,3.11680655,186.2,186.16,10.48882769]
[1761895535089,3.11680655,186.19,186.16,10.48882769]
[1761895535277,3.11680655,186.19,186.17,5.37143471]
[1761895536383,3.11680655,186.18,186.17,5.37143471]
[1761895537367,3.11680655,186.18,186.16,5.37172324]
[1761895539393,3.80680655,186.19,186.16,5.37172324]
[1761895539993,21.282,186.23,186.17,0.7]
[1761895540168,3.11680655,186.2,186.17,0.7]
[1761895540374,3.11680655,186.19,186.17,0.7]
[1761895540573,3.11680655,186.19,186.16,80.50103136]
[1761895540788,3.11680655,186.19,186.16,81.20103136]
[1761895543209,3.11680655,186.17,186.12,61.7]
[1761895543371,3.11680655,186.17,186.13,15.16140113]
[1761895543694,3.11680655,186.17,186.13,29.29287375]
[1761895544689,3.80680655,186.17,186.13,29.29287375]
[1761895544895,3.11680655,186.17,186.13,28.59287375]
[1761895545070,3.11680655,186.17,186.15,5.37201181]
[1761895546190,3.80680655,186.17,186.14,5.37230041]
[1761895548579,5.36974729,186.2,186.15,10.48882769]
[1761895548580,3.11680655,186.19,186.15,10.48882769]
[1761895548990,3.80680655,186.19,186.15,9.78882769]
[1761895549194,3.11680655,186.19,186.15,9.78882769]
[1761895549393,3.80680655,186.19,186.15,10.48882769]
[1761895550083,3.80680655,186.19,186.16,5.37172324]
[1761895554794,36.74056681,186.22,186.17,0.7]
[1761895554795,3.11680655,186.2,186.17,0.7]
[1761895554994,3.11680655,186.2,186.18,5.3711462]
[1761895556292,3.80680655,186.2,186.18,5.3711462]
[1761895557305,3.80680655,186.2,186.16,13.42930812]
[1761895557306,0.69,186.19,186.16,18.80103136]
[1761895557492,1.99761676,186.18,186.16,5.37172324]
[1761895557692,1.99761676,186.17,186.16,5.37172324]
[1761895560109,2.68761676,186.18,186.16,5.37172324]
[1761895560510,2.68761676,186.18,186.15,9.78882769]
[1761895560511,2.68761676,186.17,186.14,15.1610602]
[1761895560699,1.99761676,186.16,186.14,15.1610602]
[1761895561296,1.99761676,186.16,186.14,9.78882769]
[1761895561496,2.68761676,186.15,186.11,9.78882769]
[1761895561800,1.99761676,186.13,186.1,9.78882769]
[1761895561996,1.99761676,186.13,186.1,10.50882769]
[1761895562511,1.99761676,186.11,186.1,9.78882769]
[1761895562714,1.99761676,186.11,186.09,9.78882769]
[1761895562901,1.99761676,186.1,186.09,9.78882769]
[1761895563304,1.99761676,186.1,186.08,9.78882769]
[1761895563614,1.99761676,186.1,186.07,0.2]
[1761895563797,1.99761676,186.1,186.07,9.98882769]
[1761895564198,1.99761676,186.11,186.08,0.72]
[1761895564593,1.99761676,186.11,186.09,5.37374388]
[1761895564796,2.68761676,186.11,186.08,5.37401366]
[1761895567805,1.99761676,186.1,186.08,5.37401366]
[1761895569021,2.68761676,186.11,186.08,5.37401366]
[1761895569319,1.99761676,186.1,186.08,5.37401366]
[1761895569820,2.68761676,186.11,186.08,5.37401366]
[1761895570017,1.99761676,186.11,186.08,5.37401366]
[1761895570202,1.99761676,186.11,186.08,6.09401366]
[1761895570802,1.99761676,186.11,186.08,5.37401366]
[1761895571003,2.68761676,186.11,186.08,5.37401366]
[1761895571411,1.99761676,186.1,186.08,5.37401366]
[1761895572195,1.99761676,186.11,186.08,5.37401366]
[1761895572910,2.68761676,186.11,186.08,5.37401366]
[1761895573311,1.99761676,186.1,186.08,5.37401366]
[1761895573518,1.99761676,186.09,186.07,0.2]
[1761895574400,1.99761676,186.09,186.07,5.57431638]
[1761895575228,1.99761676,186.09,186.07,6.29431638]
[1761895575626,1.99761676,186.09,186.07,5.57431638]
[1761895575924,2.68761676,186.09,186.07,0.2]
[1761895576119,2.68761676,186.08,186.07,0.2]
[1761895576517,23.27961676,186.08,186.07,0.2]
[1761895576902,27.28865476,186.08,186.07,0.2]
[1761895577914,36.27109002,186.08,186.07,0.2]
[1761895578109,32.66268743,186.08,186.07,0.2]
[1761895578412,36.26946336,186.08,186.07,0.2]
[1761895578807,30.89543069,186.08,186.07,0.2]
[1761895579007,27.28865476,186.08,186.07,0.2]
[1761895580313,4.009038,186.08,186.07,0.2]
[1761895580511,6.00665476,186.08,186.07,0.2]
[1761895582129,1.99761676,186.08,186.07,0.2]
[1761895582729,0.72,186.1,186.07,0.2]
[1761895582934,1.99761676,186.08,186.07,0.2]
[1761895585339,2.71761676,186.08,186.07,0.2]
[1761895585829,1.99761676,186.08,186.07,0.2]
[1761895588644,2.71761676,186.08,186.07,0.2]
[1761895589722,1.99761676,186.08,186.07,0.2]
[1761895590413,1.99761676,186.1,186.07,0.91]
[1761895590614,22.58961676,186.12,186.07,0.91]
[1761895590826,1.99761676,186.12,186.08,0.71]
[1761895591852,22.58961676,186.13,186.09,5.37374388]
[1761895592014,1.99761676,186.1,186.08,0.71]
[1761895592213,1.99761676,186.1,186.07,9.98882769]
[1761895592512,0.7,186.12,186.07,16.07309935]
[1761895592513,1.99761676,186.09,186.07,16.07309935]
[1761895593813,20.592,186.14,186.09,9.78882769]
[1761895594016,3.99951236,186.13,186.09,9.78882769]
[1761895594345,13.42851003,186.18,186.09,9.78882769]
[1761895594346,1.99761676,186.15,186.11,9.78882769]
[1761895594847,20.592,186.18,186.12,0.71]
[1761895595140,5.99732436,186.17,186.13,9.78882769]
[1761895595316,1.99761676,186.17,186.13,9.78882769]
[1761895595635,1.99761676,186.17,186.14,0.71]
[1761895595824,1.99761676,186.16,186.14,0.71]
[1761895597119,26.66233814,186.21,186.15,9.78882769]
[1761895597335,1.99761676,186.18,186.15,9.78882769]
[1761895597712,1.99761676,186.18,186.15,10.49882769]
[1761895597918,1.99761676,186.18,186.15,15.87077288]
[1761895598443,1.99761676,186.17,186.15,15.87077288]
[1761895598750,1.99761676,186.21,186.17,9.78882769]
[1761895598920,4.00274485,186.2,186.17,9.78882769]
[1761895599244,4.00274485,186.2,186.18,0.71]
[1761895599818,4.00274485,186.2,186.17,5.37142914]
[1761895599819,1.99761676,186.19,186.17,5.37142914]
[1761895600043,1.99761676,186.19,186.17,15.87025683]
[1761895600352,2.69761676,186.18,186.16,61.7]
[1761895600540,1.99761676,186.17,186.13,15.87141322]
[1761895600752,1.99761676,186.15,186.13,9.78882769]
[1761895601936,1.99761676,186.14,186.12,0.71]
[1761895602256,1.99761676,186.14,186.12,6.08286252]
[1761895603531,1.99761676,186.15,186.12,6.08286252]
[1761895604043,0.7,186.17,186.14,9.78882769]
[1761895604044,1.99761676,186.17,186.14,9.78882769]
[1761895604426,1.99761676,186.17,186.15,0.71]
[1761895605229,6.07060316,186.2,186.15,0.71]
[1761895605423,1.99761676,186.17,186.15,0.71]
[1761895606429,1.99761676,186.17,186.15,6.0820051]
[1761895607138,1.99761676,186.17,186.13,76.86139427]
[1761895607343,1.99761676,186.17,186.15,0.71]
[1761895607846,1.99761676,186.16,186.15,0.71]
[1761895608540,1.99761676,186.16,186.15,6.08201181]
[1761895609335,1.99761676,186.16,186.12,0.71]
[1761895609523,6.00740869,186.15,186.12,0.71]
[1761895609726,1.99761676,186.15,186.12,0.71]
[1761895610349,1.99761676,186.15,186.13,5.37258905]
[1761895613647,1.99761676,186.15,186.11,9.78882769]
[1761895613839,1.99761676,186.15,186.13,0.71]
[1761895615754,1.99761676,186.15,186.13,6.08248011]
[1761895617135,1.99761676,186.16,186.14,0.71]
[1761895617332,3.12236927,186.16,186.14,0.71]
[1761895617949,3.12236927,186.17,186.14,0.71]
[1761895618146,3.60867815,186.2,186.14,6.08202098]
[1761895618147,4.00857946,186.16,186.14,6.08202098]
[1761895618349,3.12236927,186.18,186.14,6.08202098]
[1761895618538,3.12236927,186.16,186.14,5.37202098]
[1761895618937,3.12236927,186.16,186.14,6.06202098]
[1761895619253,0.72,186.19,186.15,0.69]
[1761895619551,3.12236927,186.17,186.14,6.06202098]
[1761895620254,3.12236927,186.16,186.14,6.06202098]
[1761895620453,0.72,186.19,186.15,0.69]
[1761895620764,3.12236927,186.16,186.14,5.37202098]
[1761895620948,3.12236927,186.15,186.13,9.78882769]
[1761895621251,3.12236927,186.15,186.13,71.48882769]
[1761895621455,3.12236927,186.15,186.13,72.17882769]
[1761895621753,3.12236927,186.14,186.13,61.7]
[1761895625461,3.84236927,186.14,186.13,61.7]
[1761895625652,13.22701686,186.14,186.08,0.69]
[1761895625848,3.12236927,186.1,186.08,0.69]
[1761895626354,3.12236927,186.09,186.08,0.69]
[1761895626732,5.37226421,186.15,186.08,0.69]
[1761895626937,4.01375059,186.14,186.08,0.69]
[1761895627138,3.12236927,186.1,186.08,0.69]
[1761895627535,3.12236927,186.11,186.08,0.69]
[1761895628361,3.12236927,186.11,186.09,5.37374388]
[1761895630063,3.12236927,186.1,186.08,6.06402908]
[1761895630356,3.12236927,186.09,186.08,6.06403267]
[1761895630565,3.12236927,186.1,186.08,6.06403267]
[1761895631686,13.43129381,186.14,186.07,0.2]
[1761895631964,3.12236927,186.08,186.07,0.2]
[1761895632150,7.14061545,186.08,186.07,0.2]
[1761895632671,7.86061545,186.08,186.07,0.2]
[1761895633046,13.23464812,186.08,186.07,0.2]
[1761895633359,12.51464812,186.08,186.07,0.2]
[1761895633766,7.14061545,186.08,186.07,0.2]
[1761895634445,12.51464812,186.08,186.07,0.2]
[1761895634646,13.23464812,186.08,186.07,0.2]
[1761895636239,7.86061545,186.08,186.07,0.2]
[1761895636445,13.23464812,186.08,186.07,0.2]
[1761895637441,4.01824618,186.08,186.07,0.2]
[1761895637646,7.14061545,186.08,186.07,0.2]
[1761895638570,7.14061545,186.08,186.07,0.9]
[1761895645272,4.01824618,186.08,186.07,0.9]
[1761895645480,3.12236927,186.1,186.07,6.27432149]
[1761895645683,4.01382006,186.09,186.08,0.7]
[1761895648590,7.13618933,186.09,186.07,0.2]
[1761895648892,3.12236927,186.08,186.07,0.2]
[1761895653161,3.12236927,186.08,186.07,0.91]
[1761895653967,3.12236927,186.08,186.07,0.2]
[1761895655194,3.12236927,186.08,186.07,0.91]
[1761895656092,7.13858778,186.08,186.07,0.91]
[1761895657970,3.12236927,186.08,186.07,0.91]
[1761895658172,7.13923589,186.08,186.07,0.91]
[1761895658374,7.13937982,186.08,186.07,0.91]
[1761895659972,7.13937982,186.08,186.07,0.2]
[1761895660988,4.01701055,186.08,186.07,0.2]
[1761895661193,7.13937982,186.08,186.07,0.91]
[1761895661393,4.01701055,186.08,186.07,0.91]
[1761895662385,1.83466308,186.08,186.07,0.91]
[1761895663497,4.95703235,186.08,186.07,0.2]
[1761895667674,4.95703235,186.08,186.07,0.91]
[1761895668873,4.95703235,186.08,186.07,0.2]
[1761895673892,8.56937014,186.08,186.07,0.2]
[1761895677287,4.49417769,186.13,186.07,9.40669076]
[1761895677629,4.28894777,186.15,186.1,9.78882769]
[1761895677787,0.66,186.14,186.08,20.592]
[1761895678117,3.78236927,186.14,186.08,21.302]
[1761895678282,3.12236927,186.13,186.09,0.71]
[1761895678489,0.66,186.14,186.09,0.71]
[1761895678490,3.78236927,186.14,186.09,0.71]
[1761895679401,2.65889674,186.14,186.1,5.37345513]
[1761895680011,2.65889674,186.14,186.11,0.69]
[1761895680602,2.65889674,186.14,186.09,5.37374388]
[1761895680824,2.65889674,186.14,186.1,0.69]
[1761895681607,2.65889674,186.14,186.1,6.06335526]
[1761895682608,1.99889674,186.15,186.11,0.69]
[1761895682780,6.0814504,186.17,186.11,62.39]
[1761895682781,1.99889674,186.16,186.11,62.39]
[1761895683194,2.70889674,186.16,186.12,0.69]
[1761895683799,2.70889674,186.16,186.12,6.06279244]
[1761895684001,1.99889674,186.15,186.12,6.06279244]
[1761895686410,2.70889674,186.15,186.12,5.37279244]
[1761895686596,1.99889674,186.14,186.12,5.37279244]
[1761895686907,1.99889674,186.14,186.12,6.06279244]
[1761895687692,1.99889674,186.14,186.11,62.39]
[1761895687894,2.70889674,186.13,186.11,61.7]
[1761895688502,1.99889674,186.13,186.1,6.06343331]
[1761895688724,1.99889674,186.13,186.11,0.69]
[1761895689700,5.37138617,186.18,186.11,0.69]
[1761895690020,1.99889674,186.15,186.12,5.37287771]
[1761895690223,4.02052052,186.14,186.13,11.78772443]
[1761895690394,4.49417769,186.23,186.14,9.78882769]
[1761895690395,1.99889674,186.2,186.14,9.78882769]
[1761895690594,4.01939011,186.19,186.14,74.17772443]
[1761895690788,4.01939011,186.18,186.15,0.69]
[1761895691096,4.01939011,186.17,186.15,0.69]
[1761895691300,2.70889674,186.19,186.15,0.69]
[1761895691624,4.01782652,186.18,186.15,0.69]
[1761895691828,4.01782652,186.17,186.16,5.37172324]
[1761895692728,4.72782652,186.17,186.14,61.7]
[1761895692926,1.99889674,186.15,186.14,61.7]
[1761895693126,6.01552296,186.15,186.12,67.07281299]
[1761895693329,1.99889674,186.14,186.12,67.07281299]
[1761895693830,2.70889674,186.15,186.12,67.76281299]
[1761895694237,1.99889674,186.14,186.12,67.07281299]
[1761895696635,14.71928653,186.13,186.07,0.2]
[1761895696827,1.99889674,186.08,186.07,5.57427644]
[1761895697420,1.99889674,186.08,186.07,0.2]
[1761895700634,1.99889674,186.08,186.07,6.23432149]
[1761895704652,1.99889674,186.09,186.07,6.23432149]
[1761895704938,1.99889674,186.1,186.08,0.66]
[1761895705948,0.67,186.13,186.08,6.03383767]
[1761895706131,1.99889674,186.11,186.08,67.73383767]
[1761895706330,1.99889674,186.11,186.09,0.66]
[1761895706644,1.99889674,186.11,186.09,62.36]
[1761895707030,0.67,186.13,186.09,62.36]
[1761895707229,1.99889674,186.11,186.09,62.36]
[1761895707737,1.99889674,186.1,186.09,62.36]
[1761895707943,1.99889674,186.1,186.09,61.7]
[1761895708360,1.99889674,186.1,186.09,67.07374388]
[1761895708526,0.67,186.12,186.09,67.07374388]
[1761895708726,1.99889674,186.1,186.09,67.07374388]
[1761895709327,1.99889674,186.11,186.09,67.07374388]
[1761895710446,1.99889674,186.11,186.09,67.78374388]
[1761895711964,1.99889674,186.12,186.09,67.07374388]
[1761895712136,1.99889674,186.12,186.1,0.71]
[1761895712342,1.99889674,186.13,186.1,0.71]
[1761895713252,1.99889674,186.13,186.11,5.3731664]
[1761895713757,1.99889674,186.13,186.11,6.0831664]
[1761895713932,1.99889674,186.12,186.11,6.0831664]
[1761895714445,1.99889674,186.12,186.1,5.37345513]
[1761895714645,1.99889674,186.12,186.1,6.08345513]
[1761895715439,1.99889674,186.12,186.11,0.71]
[1761895716362,1.99889674,186.12,186.11,6.0831664]
[1761895716955,1.99889674,186.12,186.11,5.3731664]
[1761895717157,6.01873549,186.12,186.1,5.37341931]
[1761895717335,1.99889674,186.12,186.1,6.08341931]
[1761895717869,1.99889674,186.12,186.1,67.78341931]
[1761895718331,1.99889674,186.12,186.1,67.07341931]
[1761895718535,1.99889674,186.11,186.1,67.07341931]
[1761895719740,0.72,186.13,186.1,67.07341931]
[1761895719942,1.99889674,186.11,186.1,67.78341931]
[1761895720268,6.02113452,186.11,186.1,67.07341931]
[1761895720964,1.99889674,186.12,186.1,67.78341931]
[1761895725132,1.99889674,186.12,186.1,62.41]
[1761895725346,2.71889674,186.11,186.1,61.7]
[1761895725533,6.74450049,186.11,186.1,61.7]
[1761895727448,6.02450049,186.11,186.1,67.07345513]
[1761895729164,6.02450049,186.11,186.1,67.78345513]
[1761895729372,6.02450049,186.11,186.1,67.07345513]
[1761895729745,6.02450049,186.11,186.1,67.78345513]
[1761895732964,6.0246496,186.11,186.1,67.78345513]
[1761895734062,1.99889674,186.11,186.1,67.07345513]
[1761895734450,6.02462683,186.11,186.1,67.78345513]
[1761895739066,4.02573009,186.11,186.1,77.57228282]
[1761895739869,3.12362151,186.14,186.11,9.78882769]
[1761895740069,4.02836023,186.13,186.11,10.49882769]
[1761895740370,4.02836023,186.12,186.11,15.87199409]
[1761895741370,4.02836023,186.12,186.11,77.57199409]
[1761895742255,4.02836023,186.12,186.11,76.86199409]
[1761895742452,7.15198174,186.12,186.11,76.86199409]
[1761895743390,7.82198174,186.12,186.11,61.7]
[1761895743579,16.31848096,186.12,186.11,61.7]
[1761895744972,13.19485945,186.12,186.11,61.7]
[1761895746770,7.82198174,186.12,186.11,61.7]
[1761895747155,7.82198174,186.12,186.08,67.07402773]
[1761895747355,3.12362151,186.09,186.08,67.07402773]
[1761895747575,3.12362151,186.09,186.08,67.78402773]
[1761895747576,7.15198174,186.09,186.08,67.78402773]
[1761895747777,4.02836023,186.09,186.08,67.78402773]
[1761895748076,3.12362151,186.16,186.1,5.37345513]
[1761895748266,3.12362151,186.15,186.1,5.37345513]
[1761895748458,3.12362151,186.15,186.12,9.78882769]
[1761895748884,3.12362151,186.15,186.12,10.49882769]
[1761895749179,3.79362151,186.16,186.14,5.37230041]
[1761895749478,3.12362151,186.16,186.14,5.37230041]
[1761895749870,3.12362151,186.16,186.14,6.08230041]
[1761895750270,3.79362151,186.16,186.14,5.37230041]
[1761895751069,3.12362151,186.16,186.14,6.08230041]
[1761895751265,3.12362151,186.18,186.15,0.71]
[1761895754283,3.12362151,186.19,186.16,18.80103136]
[1761895754467,0.67,186.22,186.16,18.80103136]
[1761895754468,3.12362151,186.2,186.17,9.78882769]
[1761895754788,3.12362151,186.2,186.17,10.49882769]
[1761895754981,0.67,186.22,186.17,10.49882769]
[1761895755182,3.12362151,186.2,186.17,10.49882769]
[1761895755368,3.12362151,186.2,186.18,5.3711462]
[1761895756561,3.12362151,186.2,186.18,6.0811462]
[1761895756787,3.62614486,186.23,186.19,10.45882769]
[1761895756999,3.12362151,186.25,186.19,13.5824492]
[1761895757207,3.62614486,186.28,186.22,3.12362151]
[1761895757208,3.12362151,186.28,186.22,3.12362151]
[1761895757372,0.65,186.29,186.21,12.9124492]
[1761895757373,3.12362151,186.27,186.21,12.9124492]
[1761895757574,3.12362151,186.27,186.22,19.46497368]
[1761895758102,3.12362151,186.27,186.24,9.78882769]
[1761895758272,3.77362151,186.28,186.24,9.78882769]
[1761895758473,0.65,186.28,186.24,0.67]
[1761895759295,0.65,186.28,186.25,5.36912751]
[1761895759995,4.01046992,186.27,186.25,5.36912751]
[1761895760380,0.65,186.28,186.25,5.36912751]
[1761895760683,4.6580673,186.28,186.25,5.36912751]
[1761895760886,0.65,186.28,186.25,6.03912751]
[1761895761478,4.6579309,186.28,186.25,6.03912751]
[1761895762401,0.65,186.28,186.25,5.36912751]
[1761895762776,0.65,186.28,186.23,15.82832285]
[1761895763078,3.12362151,186.24,186.23,61.7]
[1761895763284,3.12362151,186.24,186.21,5.37027389]
[1761895763476,3.12362151,186.22,186.19,5.37071018]
[1761895763679,3.12362151,186.22,186.19,67.07071018]
[1761895763878,3.77362151,186.22,186.19,67.07071018]
[1761895766594,3.12362151,186.3,186.19,61.7]
[1761895766595,3.77362151,186.21,186.19,61.7]
[1761895766898,3.77362151,186.21,186.18,71.48882769]
[1761895767094,3.77362151,186.21,186.18,76.85992305]
[1761895767299,3.12362151,186.2,186.18,76.85992305]
[1761895768081,0.65,186.21,186.18,77.52992305]
[1761895768281,3.12362151,186.2,186.18,77.52992305]
[1761895769399,0.65,186.22,186.18,77.52992305]
[1761895769580,3.12362151,186.2,186.18,77.52992305]
[1761895776111,3.12362151,186.2,186.19,0.68]
[1761895776410,3.12362151,186.2,186.19,62.38]
[1761895777414,3.12362151,186.2,186.19,67.75085772]
[1761895778192,3.12362151,186.2,186.19,62.38]
[1761895779705,3.12362151,186.2,186.19,61.7]
[1761895780407,3.12362151,186.2,186.19,67.07085772]
[1761895780918,0.71,186.21,186.19,67.07085772]
[1761895781215,3.12362151,186.2,186.19,67.07085772]
[1761895781889,3.83362151,186.2,186.19,61.7]
[1761895782191,3.83362151,186.2,186.18,15.15992811]
[1761895783491,0.71,186.2,186.18,15.15992811]
[1761895783813,3.83362151,186.21,186.18,15.15992811]
[1761895786611,3.83362151,186.21,186.18,15.83992811]
[1761895787113,3.83362151,186.21,186.18,15.15992811]
[1761895788215,3.83362151,186.21,186.18,76.85992811]
[1761895790531,3.83362151,186.21,186.18,77.53992811]
[1761895791806,3.12362151,186.22,186.19,0.68]
[1761895792611,0.71,186.21,186.18,76.85992811]
[1761895792813,3.83362151,186.21,186.18,76.85992811]
[1761895793019,3.83362151,186.21,186.18,77.53992811]
[1761895796327,3.83362151,186.21,186.18,76.85992811]
[1761895796513,3.12362151,186.2,186.18,77.53992811]
[1761895796822,3.12362151,186.2,186.18,76.85992811]
[1761895797034,3.83362151,186.2,186.18,76.85992811]
[1761895798000,3.12362151,186.2,186.17,5.37139892]
[1761895798206,3.12362151,186.18,186.16,61.7]
[1761895798405,3.12362151,186.17,186.15,5.37173566]
[1761895798713,3.83362151,186.17,186.14,5.37230041]
[1761895798918,3.83362151,186.17,186.14,6.02230041]
[1761895799515,3.12362151,186.17,186.15,0.65]
[1761895799702,3.12362151,186.18,186.15,0.65]
[1761895800117,0.66,186.18,186.15,10.43882769]
[1761895800314,3.12362151,186.22,186.17,3.12362151]
[1761895800511,4.02307267,186.21,186.18,10.43882769]
[1761895800712,3.12362151,186.23,186.18,9.78882769]
[1761895800933,4.02253955,186.22,186.19,0.65]
[1761895801224,4.02250012,186.21,186.19,62.35]
[1761895801446,2.65673957,186.25,186.2,11.78556726]
[1761895801626,4.02234929,186.24,186.22,11.78556726]
[1761895801803,2.65673957,186.29,186.24,9.78882769]
[1761895802003,4.02174191,186.28,186.24,9.78882769]
[1761895802204,4.02174191,186.27,186.25,0.65]
[1761895802508,0.66,186.29,186.25,0.65]
[1761895802702,4.01989615,186.28,186.25,0.65]
[1761895802915,0.66,186.29,186.25,0.65]
[1761895803114,4.01989702,186.28,186.25,0.65]
[1761895803440,2.65673957,186.29,186.25,0.65]
[1761895803607,4.01877328,186.28,186.26,5.36883925]
[1761895803807,2.65673957,186.29,186.26,5.36883925]
[1761895804004,4.01877328,186.28,186.26,5.36883925]
[1761895804213,2.65673957,186.29,186.26,5.36883925]
[1761895804410,4.01781379,186.28,186.26,5.36883925]
[1761895804622,0.66,186.29,186.26,5.36883925]
[1761895804823,1.99673957,186.3,186.26,5.36883925]
[1761895804824,1.99673957,186.3,186.27,0.65]
[1761895805020,4.01777443,186.29,186.26,6.01883925]
[1761895805229,0.66,186.29,186.26,6.01883925]
[1761895805718,1.99673957,186.3,186.26,6.01883925]
[1761895805910,4.01675619,186.29,186.26,6.01883925]
[1761895806114,0.66,186.29,186.26,6.01883925]
[1761895806512,1.99673957,186.3,186.26,6.01883925]
[1761895806716,4.01592979,186.29,186.26,6.01883925]
[1761895806928,2.65673957,186.3,186.26,6.01883925]
[1761895807115,4.01592937,186.29,186.26,6.01883925]
[1761895807320,2.65673957,186.3,186.26,6.01883925]
[1761895807521,4.01514961,186.29,186.26,6.01883925]
[1761895807715,2.65673957,186.3,186.26,6.01883925]
[1761895807914,4.01514961,186.29,186.26,6.01883925]
[1761895808115,2.65673957,186.3,186.26,6.01883925]
[1761895808326,4.01515003,186.29,186.26,6.01883925]
[1761895809217,4.67515003,186.29,186.26,6.01883925]
[1761895809415,0.66,186.29,186.26,6.01883925]
[1761895810129,2.65673957,186.29,186.26,5.36883925]
[1761895811234,2.65673957,186.29,186.26,6.01883925]
[1761895811539,2.65673957,186.29,186.26,67.71883925]
[1761895811844,2.09673957,186.31,186.27,10.43882769]
[1761895812014,4.0112176,186.3,186.28,5.36826283]
[1761895812323,0.1,186.31,186.29,0.65]
[1761895812518,4.11029973,186.31,186.29,62.35]
[1761895812717,0.1,186.31,186.3,9.78882769]
[1761895812942,0.1,186.31,186.3,10.43882769]
[1761895813953,0.1,186.31,186.3,74.13556726]
[1761895814126,0.1,186.31,186.3,79.50325378]
[1761895815333,0.1,186.32,186.3,79.50325378]
[1761895815528,0.1,186.32,186.31,12.43556726]
[1761895815843,0.1,186.32,186.31,74.13556726]
[1761895816515,0.1,186.32,186.31,79.50296568]
[1761895819032,0.1,186.32,186.31,77.50622611]
[1761895819342,0.1,186.32,186.31,79.50296568]
[1761895821146,0.1,186.32,186.31,76.85622611]
[1761895821341,2.81673957,186.32,186.31,76.85622611]
[1761895821652,0.1,186.32,186.31,76.85622611]
[1761895826649,2.09673957,186.32,186.31,61.7]
[1761895826830,2.81673957,186.32,186.31,61.7]
[1761895829238,0.82,186.32,186.31,61.7]
[1761895829450,2.81673957,186.32,186.31,61.7]
[1761895830547,2.09673957,186.32,186.31,67.06739842]
[1761895831947,2.75673957,186.32,186.31,61.7]
[1761895833053,8.12384991,186.32,186.31,61.7]
[1761895833257,2.75673957,186.32,186.31,61.7]
[1761895833756,2.75673957,186.32,186.28,76.85698008]
[1761895834050,1.99673957,186.3,186.28,76.85698008]
[1761895834254,1.99673957,186.3,186.29,0.67]
[1761895834666,1.99673957,186.3,186.28,76.85698008]
[1761895834667,0.66,186.29,186.28,61.7]
[1761895834873,2.65673957,186.29,186.28,61.7]
[1761895840763,1.99673957,186.31,186.28,67.73826283]
[1761895840971,1.99673957,186.3,186.28,67.06826283]
[1761895841172,1.99673957,186.29,186.28,71.48882769]
[1761895841338,0.66,186.31,186.28,76.85703334]
[1761895841662,1.99673957,186.29,186.28,76.85703334]
[1761895845454,1.99673957,186.29,186.28,67.06820565]
[1761895847860,1.99673957,186.29,186.28,67.73820565]
[1761895848066,1.99673957,186.29,186.28,67.06820565]
[1761895848249,1.99673957,186.29,186.28,67.73820565]
[1761895848672,1.99673957,186.3,186.28,67.73820565]
[1761895848981,0.76,186.32,186.29,0.67]
[1761895849152,1.99673957,186.3,186.29,6.03769609]
[1761895849351,0.1,186.32,186.29,6.03769609]